bitfinex-derivatives/quotes_ETHF0:USTF0_20260131
["timestamp","ask_amount","ask_price","bid_price","bid_amount"]
[1769876965205,3.76558463,2531.5,2529.7,3.66831885]
[1769876965401,3.76558463,2531.3,2529.7,3.66831885]
[1769876965597,3.76558463,2531.3,2529.9,0.19793]
[1769876965804,3.76558463,2531.3,2529.6,3.561]
[1769876966306,3.76558463,2531.3,2529.6,3.56581455]
[1769876966701,3.76558463,2531.1,2529.6,0.00481455]
[1769876966901,3.76558463,2530.9,2529.6,0.00481455]
[1769876967203,3.76558463,2530.7,2529.6,0.00481455]
[1769876967901,3.76558463,2530.5,2528.8,3.66831885]
[1769876968102,3.76558463,2530.3,2528.5,3.86636885]
[1769876968703,3.76558463,2530.1,2528.5,3.86636885]
[1769876968900,3.76558463,2529.9,2528.5,0.20185402]
[1769876969105,5.01419339,2529.8,2528.5,0.20185402]
[1769876969307,3.76558463,2529.7,2528.5,0.20185402]
[1769876970109,3.76558463,2530.1,2528.5,3.87017287]
[1769876970706,3.76558463,2530.1,2528.8,3.66831885]
[1769876971308,3.76558463,2530.1,2529.0,0.198]
[1769876971608,3.76558463,2529.9,2528.5,0.00380402]
[1769876971808,3.76558463,2529.7,2528.5,0.00380402]
[1769876972712,3.76558463,2529.7,2528.5,3.67212287]
[1769876972913,3.76558463,2530.2,2528.7,3.66831885]
[1769876973110,8.78680198,2530.1,2528.7,3.66831885]
[1769876973410,3.76558463,2530.1,2528.9,0.19801]
[1769876973909,3.76558463,2530.1,2528.9,3.86632885]
[1769876974106,3.76558463,2530.1,2529.0,3.86632885]
[1769876974910,3.76558463,2530.1,2529.0,0.19801]
[1769876976808,3.76558463,2530.1,2528.6,3.66831885]
[1769876977013,3.97619126,2529.9,2528.5,3.94268783]
[1769876977213,3.97619126,2529.9,2528.6,4.13692381]
[1769876978909,3.97619126,2529.9,2528.6,0.19804]
[1769876979115,3.97619126,2529.5,2527.2,3.93888381]
[1769876979314,3.97619126,2529.3,2527.7,4.13699381]
[1769876979523,3.97619126,2530.2,2528.8,0.67533178]
[1769876979809,3.97619126,2530.9,2528.5,1.87875449]
[1769876980010,3.97619126,2530.9,2529.5,0.19797]
[1769876980713,3.9797014,2530.9,2529.6,0.19796]
[1769876980905,3.9797014,2530.9,2529.7,0.19795]
[1769876981510,3.9797014,2530.9,2529.5,0.00282244]
[1769876982912,39.05375561,2530.9,2529.5,0.00282244]
[1769876983113,3.70581801,2530.8,2529.5,0.00282244]
[1769876983808,35.07756435,2530.9,2529.0,0.60707605]
[1769876984115,0.00351014,2530.9,2529.9,0.19793]
[1769876984408,3.70791693,2530.9,2529.9,0.19793]
[1769876984806,3.69826516,2530.8,2529.9,0.20236553]
[1769876986117,3.69826516,2530.6,2529.2,0.19799]
[1769876986417,3.69826516,2530.4,2529.2,0.19799]
[1769876987217,3.69826516,2530.4,2529.2,0.2016156]
[1769876990018,3.73943769,2530.3,2529.2,0.2016156]
[1769876991217,3.73610691,2530.0,2528.7,0.19803]
[1769876991417,3.73610691,2529.9,2528.7,0.19803]
[1769876991618,3.73610691,2529.7,2528.7,0.19803]
[1769876992218,3.73610691,2529.7,2528.7,0.20177358]
[1769876993018,3.73610691,2529.7,2528.7,0.00374358]
[1769876993214,3.73671913,2529.5,2528.7,0.00374358]
[1769876996923,3.7066317,2529.3,2528.0,0.54245138]
[1769876997223,3.7066317,2529.3,2527.9,0.19809]
[1769876998027,3.7066317,2529.3,2527.9,0.20193286]
[1769876998231,3.7066317,2529.3,2528.0,0.19809]
[1769876998929,3.75018362,2529.1,2528.0,0.19809]
[1769876999127,3.75427918,2529.1,2528.0,0.19809]
[1769877000933,3.75479793,2529.7,2528.4,0.50629379]
[1769877001131,3.75479793,2529.7,2527.9,0.00384286]
[1769877001334,3.65577793,2529.4,2527.9,0.00384286]
[1769877001632,3.65577793,2529.2,2527.9,0.70817665]
[1769877001834,35.07405421,2530.1,2528.6,0.19804]
[1769877002126,35.07405421,2530.1,2528.0,0.19808]
[1769877002127,35.07405421,2529.9,2528.0,0.19808]
[1769877002324,35.07405421,2529.4,2527.9,0.00384286]
[1769877002527,9.16380613,2529.3,2527.9,0.00384286]
[1769877002834,5.36680613,2529.2,2527.9,0.00384286]
[1769877003136,5.36680613,2529.1,2527.4,0.19813]
[1769877003329,5.36680613,2529.0,2527.6,4.09226582]
[1769877003630,5.36680613,2529.0,2527.2,0.3189127]
[1769877003631,3.797,2529.3,2527.7,0.19811]
[1769877003826,3.797,2529.3,2526.1,13.53365753]
[1769877003827,3.64630052,2529.1,2527.0,4.09230582]
[1769877004031,3.64630052,2528.9,2527.0,4.09641073]
[1769877004226,3.64630052,2528.7,2527.0,4.09641073]
[1769877004428,3.64630052,2528.5,2527.0,0.00410491]
[1769877004736,3.64630052,2528.3,2526.4,3.89414582]
[1769877004941,3.64630052,2528.1,2526.6,3.89414582]
[1769877005231,3.64630052,2528.1,2526.0,0.19824]
[1769877005436,3.64630052,2527.9,2526.0,0.19824]
[1769877005637,3.64630052,2527.7,2526.0,0.19824]
[1769877005828,3.64630052,2527.5,2526.0,0.20223311]
[1769877006234,3.64630052,2527.5,2526.0,0.00399311]
[1769877006731,3.64630052,2527.3,2526.0,0.00399311]
[1769877007038,3.64943114,2527.3,2526.0,0.00399311]
[1769877007731,3.64943114,2527.3,2526.0,3.93102894]
[1769877007936,3.64943114,2527.3,2526.0,0.00399311]
[1769877009339,3.64943114,2527.3,2526.0,3.93102894]
[1769877009736,3.64943114,2527.3,2526.0,4.12926894]
[1769877010138,3.64943114,2527.3,2526.0,0.20223311]
[1769877010739,3.64943114,2527.3,2526.0,4.12926894]
[1769877010934,3.64943114,2527.3,2526.0,0.20223311]
[1769877011140,3.64943114,2527.3,2525.4,0.19829]
[1769877012142,3.64943114,2527.3,2525.4,0.20202001]
[1769877013244,3.64943114,2527.3,2525.5,0.19828]
[1769877013442,3.8838635,2527.1,2525.5,0.19828]
[1769877014034,3.8838635,2527.1,2524.7,1.8770931]
[1769877014035,3.8838635,2526.7,2524.4,0.19836]
[1769877014239,3.8838635,2526.5,2524.5,4.12538583]
[1769877014836,3.8838635,2526.3,2523.8,4.12545583]
[1769877015042,3.8838635,2526.3,2523.8,4.12875883]
[1769877015242,3.8838635,2526.1,2523.8,4.12875883]
[1769877015636,3.8838635,2526.1,2523.8,0.201723]
[1769877015843,3.8838635,2525.9,2523.8,0.201723]
[1769877016042,3.8838635,2525.7,2523.8,0.201723]
[1769877016244,3.8838635,2525.5,2524.0,0.1984]
[1769877016444,3.88729471,2525.5,2524.0,0.1984]
[1769877016743,3.88729471,2525.5,2523.9,3.92703583]
[1769877016744,3.8838635,2526.5,2524.8,3.92703583]
[1769877016949,3.8838635,2526.5,2525.1,4.12534583]
[1769877017642,3.88718136,2526.5,2525.1,4.12534583]
[1769877017843,3.88718136,2526.5,2525.1,0.19831]
[1769877018245,3.88718136,2526.5,2525.1,4.12534583]
[1769877018441,0.00331786,2526.5,2525.3,3.92703583]
[1769877018745,3.8838635,2526.9,2525.3,3.92703583]
[1769877018942,3.8838635,2527.2,2525.9,4.12528583]
[1769877019646,3.8838635,2528.0,2526.5,3.92703583]
[1769877019949,3.8838635,2528.0,2526.2,3.92703583]
[1769877020149,3.8838635,2528.0,2526.4,4.12524583]
[1769877020345,3.8838635,2528.0,2526.6,3.92703583]
[1769877020551,3.8838635,2528.7,2526.9,3.92703583]
[1769877020743,3.88825898,2528.7,2527.4,1.8770931]
[1769877021051,3.88825898,2528.7,2527.5,3.92703583]
[1769877021245,3.8838635,2529.2,2527.5,3.92703583]
[1769877021441,3.8838635,2529.2,2527.5,0.19812]
[1769877021639,3.8838635,2529.2,2527.5,4.12515583]
[1769877021846,3.8838635,2529.2,2527.7,4.12514583]
[1769877022144,3.8838635,2529.2,2527.3,3.92703583]
[1769877022353,3.8838635,2529.0,2527.3,0.00428457]
[1769877022652,3.8838635,2528.8,2527.3,0.00428457]
[1769877022845,9.10992003,2528.9,2527.3,0.00428457]
[1769877022846,3.8838635,2528.6,2527.3,0.00428457]
[1769877024553,3.8838635,2528.4,2526.7,0.19818]
[1769877024752,3.8838635,2528.4,2526.7,4.12521583]
[1769877025054,3.8838635,2529.0,2527.0,3.92703583]
[1769877025248,3.8838635,2529.0,2527.3,4.12517583]
[1769877025647,3.8838635,2529.0,2527.3,4.12916823]
[1769877025848,3.8838635,2529.0,2527.5,0.19813]
[1769877026651,3.8838635,2528.8,2527.3,0.0039924]
[1769877026953,35.07405421,2529.1,2527.3,0.0039924]
[1769877026954,38.95791771,2528.6,2527.3,0.0039924]
[1769877027255,3.8838635,2528.4,2526.7,0.19818]
[1769877027553,3.8838635,2528.2,2526.7,0.19818]
[1769877027743,3.8838635,2528.2,2526.7,4.12521583]
[1769877028143,3.8838635,2528.2,2526.7,4.12828344]
[1769877028947,3.8838635,2528.2,2526.9,4.12520583]
[1769877029147,3.8838635,2528.2,2527.1,3.92703583]
[1769877030858,3.8838635,2528.2,2527.0,0.19816]
[1769877031056,3.8838635,2528.5,2527.0,4.12519583]
[1769877031259,3.8838635,2528.5,2527.1,4.12518583]
[1769877031562,3.8838635,2528.5,2527.2,4.12518583]
[1769877031863,3.8838635,2529.0,2527.5,3.92703583]
[1769877032058,3.8838635,2529.0,2528.0,3.92703583]
[1769877032263,0.00481194,2529.2,2528.0,4.12511583]
[1769877032562,3.8838635,2529.4,2528.3,3.92703583]
[1769877032763,35.07405421,2529.9,2527.4,3.563]
[1769877032764,3.8838635,2529.8,2528.5,3.92703583]
[1769877033659,3.88884357,2529.8,2528.5,4.12997152]
[1769877034261,3.88884357,2529.8,2528.7,3.92703583]
[1769877034864,3.88884357,2529.8,2528.6,0.19804]
[1769877035465,3.88884357,2529.8,2528.5,0.00489569]
[1769877036963,3.67925441,2529.6,2528.5,0.00129899]
[1769877037162,0.00498007,2529.8,2528.5,0.00129899]
[1769877037163,3.67925441,2529.4,2528.5,0.00129899]
[1769877037869,3.67925441,2529.4,2527.8,3.61340608]
[1769877038168,3.67925441,2529.4,2527.7,3.81151608]
[1769877038770,3.67925441,2529.4,2527.7,0.19811]
[1769877039068,3.67925441,2529.2,2527.7,0.00408646]
[1769877039268,3.67925441,2529.0,2527.7,0.00408646]
[1769877039672,3.67925441,2529.0,2527.8,3.61340608]
[1769877039864,2.31059976,2529.6,2527.8,3.61340608]
[1769877040060,3.68423448,2529.8,2528.7,0.19803]
[1769877040263,3.68423448,2529.8,2528.2,0.19807]
[1769877040469,3.68423448,2529.8,2528.3,3.81146608]
[1769877040670,3.68423448,2529.8,2528.5,3.61340608]
[1769877040870,3.68423448,2529.8,2528.2,3.65826066]
[1769877041170,3.68423448,2529.8,2528.2,0.19807]
[1769877042465,3.68423448,2529.8,2528.3,3.85632066]
[1769877044861,3.68423448,2529.8,2528.3,0.19806]
[1769877045066,3.87951215,2529.7,2528.3,0.19806]
[1769877045773,3.87951215,2529.7,2528.3,3.85632066]
[1769877045972,3.87951215,2529.7,2528.3,0.19806]
[1769877046170,3.87951215,2529.5,2528.3,0.19806]
[1769877046366,3.87951215,2529.3,2527.7,3.86045712]
[1769877046568,3.87951215,2529.1,2527.7,3.86045712]
[1769877046869,3.87951215,2529.1,2527.8,0.1981]
[1769877047274,3.87951215,2528.9,2527.8,0.1981]
[1769877048770,3.87951215,2528.9,2527.8,3.85636066]
[1769877049167,35.07405421,2529.2,2528.0,3.65826066]
[1769877049373,3.87951215,2529.0,2528.1,0.19808]
[1769877049966,3.87951215,2528.8,2528.1,0.19808]
[1769877051871,38.95356636,2529.2,2528.1,0.19808]
[1769877052076,5.36807846,2529.1,2528.1,3.85634066]
[1769877052278,5.36807846,2529.0,2528.1,3.85634066]
[1769877052473,3.87951215,2529.2,2528.1,0.19808]
[1769877052673,3.87951215,2529.0,2528.1,0.19808]
[1769877052973,3.87951215,2529.2,2528.1,0.19808]
[1769877053179,35.07405421,2529.3,2528.1,0.19808]
[1769877053180,3.87951215,2529.0,2528.1,0.19808]
[1769877055075,3.87951215,2529.2,2528.1,3.85634066]
[1769877055480,3.87951215,2529.0,2528.1,0.19808]
[1769877056074,5.37241373,2528.9,2528.1,0.19808]
[1769877056273,3.87951215,2529.0,2528.1,0.19808]
[1769877056473,5.37283681,2528.9,2528.1,0.19808]
[1769877056676,3.87951215,2528.7,2527.7,0.00408646]
[1769877056876,3.87951215,2528.5,2527.7,0.00408646]
[1769877057179,38.95356636,2528.9,2527.7,3.66234712]
[1769877057380,9.25425987,2528.8,2527.7,3.66234712]
[1769877057579,5.37474772,2528.7,2527.8,0.1981]
[1769877057879,3.87951215,2528.8,2527.8,3.85636066]
[1769877058283,5.3778947,2528.7,2527.8,3.85636066]
[1769877058481,3.87951215,2528.8,2527.8,3.85636066]
[1769877058676,3.87951215,2528.6,2527.8,0.1981]
[1769877058871,5.37731809,2528.5,2527.7,0.00408646]
[1769877059076,3.87951215,2528.3,2527.7,0.00408646]
[1769877059275,5.37731809,2528.4,2527.4,3.563]
[1769877059276,3.87951215,2528.1,2527.4,3.563]
[1769877059480,3.87951215,2527.9,2526.5,3.65826066]
[1769877059675,3.87951215,2527.7,2526.1,3.65826066]
[1769877059873,3.87951215,2527.5,2526.1,3.65826066]
[1769877060078,3.87951215,2527.3,2526.1,3.65826066]
[1769877060377,38.95356636,2528.1,2526.9,3.85643066]
[1769877060579,5.37657431,2528.0,2527.1,3.65826066]
[1769877060782,3.87951215,2528.6,2527.3,3.65826066]
[1769877061379,3.88310747,2528.6,2527.3,3.65826066]
[1769877062284,0.00359532,2528.6,2527.5,3.65826066]
[1769877062885,3.88310747,2528.6,2527.4,0.19813]
[1769877063682,3.87951215,2528.5,2526.8,0.19818]
[1769877063880,3.87951215,2528.4,2526.8,0.19818]
[1769877064079,3.87951215,2528.3,2526.8,0.19818]
[1769877064381,3.87951215,2528.1,2526.8,0.19818]
[1769877064582,3.87951215,2528.1,2526.1,0.20333105]
[1769877064882,3.87951215,2527.9,2526.3,0.19822]
[1769877065081,35.07405421,2528.0,2526.1,0.00510105]
[1769877065082,3.87951215,2527.7,2526.1,0.00510105]
[1769877065284,3.87951215,2527.4,2526.1,0.00510105]
[1769877065484,38.95356636,2527.3,2526.1,0.00510105]
[1769877065793,3.87951215,2527.0,2526.1,0.00510105]
[1769877066082,3.87951215,2526.8,2525.7,3.561]
[1769877066678,3.87951215,2526.8,2525.0,3.65826066]
[1769877067072,3.76157516,2526.6,2525.2,0.00458631]
[1769877068988,3.76157516,2526.6,2525.2,3.62937672]
[1769877069486,3.76157516,2526.6,2525.4,3.62479041]
[1769877069886,3.76493024,2526.8,2525.4,3.62479041]
[1769877070088,0.00335508,2526.8,2525.6,3.62479041]
[1769877070287,3.76157516,2527.6,2526.0,3.62479041]
[1769877071182,3.76157516,2527.6,2525.7,3.62479041]
[1769877071183,3.76616758,2527.6,2525.7,3.62479041]
[1769877071887,3.76157516,2527.4,2525.6,0.19827]
[1769877072086,3.76157516,2527.4,2525.6,3.82306041]
[1769877072691,5.21935307,2527.3,2525.6,3.82306041]
[1769877072891,3.76157516,2527.1,2525.2,3.62937672]
[1769877073095,3.76157516,2526.9,2525.2,0.00458631]
[1769877073285,3.76157516,2526.7,2525.2,0.00458631]
[1769877076584,3.76157516,2526.7,2524.9,0.19833]
[1769877076789,3.76157516,2526.5,2524.9,0.19833]
[1769877076983,3.76157516,2526.3,2524.4,3.562]
[1769877077190,3.76157516,2526.3,2524.4,7.18679041]
[1769877077389,3.76157516,2526.3,2525.0,3.82311041]
[1769877077593,3.76157516,2526.3,2525.0,3.82764847]
[1769877077887,3.76157516,2526.3,2525.0,0.20285806]
[1769877078095,3.76157516,2526.3,2525.0,0.00453806]
[1769877081892,3.76157516,2525.9,2523.6,0.19843]
[1769877082095,3.76157516,2525.7,2523.6,0.19843]
[1769877082297,35.07405421,2525.9,2523.6,0.19843]
[1769877082298,3.76157516,2525.5,2523.6,3.82322041]
[1769877082793,3.76614679,2525.5,2523.6,3.82757025]
[1769877083194,3.76614679,2525.5,2523.6,0.20277984]
[1769877083401,3.76157516,2525.3,2523.9,3.62479041]
[1769877083597,3.76157516,2525.3,2524.0,0.1984]
[1769877083790,0.00457163,2525.5,2524.2,3.62479041]
[1769877083998,3.76157516,2526.1,2525.0,3.62479041]
[1769877084199,3.76157516,2526.1,2524.9,0.19833]
[1769877084495,3.76157516,2526.5,2525.1,0.19831]
[1769877084696,3.76157516,2526.5,2524.7,3.62479041]
[1769877085197,3.76649918,2526.5,2524.7,3.62479041]
[1769877085600,3.76649918,2526.5,2524.8,0.19834]
[1769877086094,3.76649918,2526.5,2524.2,3.62479041]
[1769877086296,3.76157516,2526.3,2524.2,3.62479041]
[1769877086597,3.76157516,2526.1,2524.2,3.62479041]
[1769877086793,3.76157516,2525.9,2523.7,3.62479041]
[1769877086995,3.76157516,2525.7,2523.7,3.62479041]
[1769877087301,3.76157516,2525.5,2523.6,3.82757025]
[1769877087500,3.76157516,2525.3,2523.6,3.82757025]
[1769877089096,3.76157516,2525.1,2523.6,0.20277984]
[1769877089302,3.76157516,2525.1,2523.6,3.82757025]
[1769877089803,3.76157516,2525.1,2523.7,3.82321041]
[1769877090492,3.76157516,2525.1,2523.9,3.62479041]
[1769877090998,9.71671244,2526.0,2524.3,3.62479041]
[1769877090999,3.76157516,2525.8,2524.3,3.62479041]
[1769877091198,3.76157516,2526.1,2524.7,3.62479041]
[1769877091500,3.76157516,2526.1,2524.9,3.82312041]
[1769877091898,0.00492402,2526.5,2525.7,3.62479041]
[1769877092101,3.76157516,2526.9,2525.7,3.62848974]
[1769877092295,3.76157516,2526.9,2525.7,0.00369933]
[1769877092496,35.07405421,2527.2,2525.8,3.62479041]
[1769877092696,4.58865475,2528.3,2526.8,3.62479041]
[1769877092901,5.2309802,2528.2,2527.0,3.62479041]
[1769877093097,4.58865475,2528.6,2527.0,3.62479041]
[1769877093303,5.83171244,2529.4,2527.6,3.62479041]
[1769877093496,5.83171244,2529.6,2527.6,3.62479041]
[1769877093898,5.83171244,2529.7,2527.9,3.62479041]
[1769877094191,0.00366132,2529.7,2528.1,3.62479041]
[1769877094596,0.00366132,2529.7,2528.2,0.19807]
[1769877094796,0.00366132,2529.7,2528.3,3.62479041]
[1769877095100,0.00366132,2529.7,2528.5,3.62479041]
[1769877095893,3.76523648,2529.7,2528.0,3.62479041]
[1769877096099,3.76523648,2529.7,2527.9,0.00395229]
[1769877096800,3.76157516,2529.6,2527.9,0.00395229]
[1769877096998,3.73272865,2529.4,2527.0,3.8105484]
[1769877097198,3.73272865,2529.2,2527.0,3.8105484]
[1769877098104,3.73272865,2529.0,2527.0,3.81497819]
[1769877099102,3.73272865,2528.8,2527.0,3.81497819]
[1769877099806,3.73272865,2528.8,2527.1,3.8105484]
[1769877100106,3.73272865,2528.6,2527.0,0.00442979]
[1769877100898,3.99802558,2528.5,2527.0,0.00442979]
[1769877101305,3.99802558,2528.5,2527.0,3.92052508]
[1769877101804,3.99802558,2528.5,2527.0,4.11868508]
[1769877103803,3.99802558,2529.0,2527.2,4.11424529]
[1769877104206,3.99802558,2529.0,2527.4,3.91609529]
[1769877104999,3.99802558,2529.0,2527.0,3.92052508]
[1769877105205,3.99802558,2528.8,2527.0,3.92052508]
[1769877107607,3.99802558,2529.0,2527.5,3.91609529]
[1769877108004,3.99802558,2529.0,2527.5,4.11421529]
[1769877108710,3.99802558,2529.4,2527.8,4.11419529]
[1769877109402,3.99802558,2529.4,2528.0,3.91609529]
[1769877109806,0.00366132,2529.7,2528.2,3.91609529]
[1769877110310,4.0016869,2529.7,2528.2,3.91609529]
[1769877110510,0.00366132,2529.7,2528.2,3.91609529]
[1769877110914,0.00366132,2529.7,2528.4,4.11414529]
[1769877111606,3.99802558,2530.2,2528.6,3.91609529]
[1769877111812,3.99802558,2530.7,2528.6,4.11413529]
[1769877112910,4.00188172,2530.7,2528.6,4.11413529]
[1769877113710,0.00385614,2530.7,2529.1,3.91609529]
[1769877113909,4.00188172,2530.7,2529.1,4.11895141]
[1769877114109,0.00385614,2530.7,2529.1,4.11895141]
[1769877114312,0.00385614,2530.7,2529.3,3.91609529]
[1769877116012,4.00188172,2530.7,2529.3,3.91609529]
[1769877116506,4.00188172,2530.7,2529.1,0.00485612]
[1769877116709,5.29653698,2530.6,2529.1,0.00485612]
[1769877116911,5.29655993,2530.5,2529.1,0.00485612]
[1769877117107,3.99802558,2530.4,2529.1,0.00485612]
[1769877117810,3.99802558,2530.4,2529.1,3.92095141]
[1769877118210,4.00188172,2530.7,2529.1,3.92095141]
[1769877119204,9.3169365,2530.6,2529.1,3.92095141]
[1769877119406,3.99802558,2530.6,2529.1,3.92095141]
[1769877119608,5.31798904,2530.5,2529.1,0.00485612]
[1769877119804,0.00385614,2530.7,2529.6,3.91609529]
[1769877120005,0.00385614,2530.7,2529.8,3.91609529]
[1769877120212,0.00385614,2530.7,2529.8,4.11403529]
[1769877120411,3.99802558,2531.3,2529.8,4.11403529]
[1769877121115,5.34362914,2531.2,2529.8,4.11403529]
[1769877121408,3.99802558,2531.0,2529.8,4.11403529]
[1769877121709,5.33854612,2530.9,2529.4,3.91609529]
[1769877121917,3.99802558,2531.0,2529.4,3.91609529]
[1769877122117,5.33863638,2530.9,2529.4,3.91609529]
[1769877122408,6.3126352,2531.0,2529.4,3.91609529]
[1769877122409,3.99802558,2531.0,2529.4,3.91609529]
[1769877122614,3.99802558,2530.8,2529.4,4.11407529]
[1769877122809,3.99802558,2530.8,2529.1,0.00485612]
[1769877122810,6.3126352,2530.6,2529.1,0.00485612]
[1769877123014,7.65602876,2530.5,2529.1,3.92095141]
[1769877123215,6.3126352,2530.7,2529.1,4.11895141]
[1769877123420,3.99802558,2530.7,2529.6,3.91609529]
[1769877124021,5.34089834,2530.6,2529.6,3.91609529]
[1769877124224,3.99802558,2530.7,2529.6,3.91609529]
[1769877125117,2.31460962,2530.9,2529.6,3.91609529]
[1769877125118,3.99802558,2530.9,2529.8,0.19794]
[1769877125418,3.99802558,2530.9,2529.1,0.00485612]
[1769877125419,3.99802558,2530.5,2529.1,4.11895141]
[1769877125621,3.99802558,2530.9,2529.5,4.11406529]
[1769877125920,3.99802558,2530.7,2529.5,0.19797]
[1769877126115,2.31460962,2530.9,2529.5,4.11406529]
[1769877126316,3.99802558,2531.0,2529.1,0.00485612]
[1769877126317,3.99802558,2531.0,2529.7,3.91609529]
[1769877126516,9.33494602,2530.9,2529.7,3.91609529]
[1769877126816,6.31608696,2531.2,2529.7,3.91609529]
[1769877127016,6.31608696,2531.2,2530.1,3.82653299]
[1769877127017,5.33815766,2531.1,2530.1,3.82653299]
[1769877127221,0.00345176,2531.2,2530.1,3.82653299]
[1769877128022,3.65759729,2531.2,2529.7,3.82653299]
[1769877128220,3.65414553,2531.0,2529.7,3.82653299]
[1769877129422,3.65414553,2530.8,2529.4,4.02451299]
[1769877129922,2.31460962,2531.1,2529.6,3.82653299]
[1769877130119,0.00345176,2531.2,2529.8,3.82653299]
[1769877130420,0.00345176,2531.2,2530.1,3.82653299]
[1769877131120,2.31460962,2531.5,2530.1,3.82653299]
[1769877131316,3.65414553,2531.6,2530.1,3.82653299]
[1769877131516,3.65414553,2531.6,2530.3,3.82653299]
[1769877131717,2.31460962,2532.1,2530.3,3.82653299]
[1769877132427,2.31888738,2532.1,2530.3,3.82653299]
[1769877132625,2.31888738,2532.1,2530.5,3.82653299]
[1769877132822,2.31888738,2532.1,2529.3,3.56]
[1769877132823,2.31460962,2532.4,2530.9,3.82653299]
[1769877133425,2.32661657,2532.4,2530.9,3.82653299]
[1769877133826,0.00442002,2532.4,2531.1,3.82653299]
[1769877134029,3.65856555,2532.4,2531.1,4.02437299]
[1769877134228,3.65414553,2532.0,2530.9,0.00404678]
[1769877134629,3.65414553,2532.0,2529.3,3.56]
[1769877134630,3.65414553,2531.7,2530.0,3.82653299]
[1769877134826,2.32661657,2531.4,2530.0,3.82653299]
[1769877135030,5.9807621,2531.4,2530.0,3.82653299]
[1769877135835,2.32661657,2531.4,2530.0,3.82967592]
[1769877136031,2.32661657,2531.5,2530.0,3.82967592]
[1769877136228,3.65414553,2531.6,2530.3,3.82653299]
[1769877136432,3.65414553,2531.4,2530.0,0.00314293]
[1769877136633,3.65414553,2531.1,2530.0,0.00314293]
[1769877136833,5.9807621,2531.1,2530.0,0.00314293]
[1769877137134,34.85241995,2531.2,2530.0,0.00314293]
[1769877137135,2.32661657,2530.9,2530.0,0.00314293]
[1769877138036,2.32661657,2530.9,2530.0,3.82967592]
[1769877138232,2.32661657,2530.8,2530.0,3.82967592]
[1769877138733,2.32661657,2530.9,2530.0,3.82967592]
[1769877139537,5.9807621,2530.7,2530.0,0.00314293]
[1769877139736,2.32661657,2530.6,2529.4,3.82653299]
[1769877140136,2.32661657,2530.5,2529.4,3.82653299]
[1769877140336,2.32661657,2530.3,2529.4,3.82653299]
[1769877140736,2.32661657,2530.3,2529.2,0.19799]
[1769877140737,3.65414553,2530.1,2528.7,3.82653299]
[1769877140936,2.32661657,2529.7,2528.6,4.02456299]
[1769877141134,2.32661657,2529.6,2528.6,4.02456299]
[1769877141837,2.32661657,2529.6,2528.6,4.0286979]
[1769877142139,5.28706283,2529.5,2528.6,4.0286979]
[1769877142440,8.93781559,2529.4,2528.6,0.00413491]
[1769877142643,5.28367006,2529.3,2528.2,3.82653299]
[1769877142934,2.32661657,2529.5,2528.2,3.82653299]
[1769877143138,11.26255228,2529.4,2528.2,3.82653299]
[1769877143335,7.60840675,2529.3,2528.2,3.82653299]
[1769877143534,5.28179018,2529.2,2528.2,3.83144848]
[1769877143736,3.65414553,2529.0,2528.2,0.00491549]
[1769877143934,8.93593571,2528.9,2527.8,7.38553299]
[1769877144138,5.28179018,2528.8,2527.9,3.82653299]
[1769877144340,5.28179018,2528.7,2527.9,3.82653299]
[1769877144539,5.27095117,2528.6,2527.8,3.559]
[1769877144741,2.32661657,2528.8,2527.8,3.559]
[1769877144939,2.32661657,2529.0,2527.9,3.82653299]
[1769877145236,3.65414553,2529.3,2527.9,3.82653299]
[1769877145237,2.32661657,2529.3,2527.9,3.82653299]
[1769877145435,5.25850777,2529.2,2527.9,3.82653299]
[1769877145636,2.32661657,2529.4,2527.9,3.82653299]
[1769877145835,5.23633899,2529.3,2527.9,3.82653299]
[1769877146136,3.65414553,2529.1,2527.9,3.82653299]
[1769877146339,3.65414553,2528.9,2527.8,3.56350835]
[1769877147137,3.65414553,2528.7,2527.8,0.00450835]
[1769877147338,3.65414553,2528.5,2527.3,3.82653299]
[1769877147736,5.2191959,2528.4,2527.3,3.82653299]
[1769877147942,3.65414553,2528.4,2526.6,3.82653299]
[1769877148144,3.65414553,2528.2,2526.6,3.82653299]
[1769877148338,3.6579739,2528.2,2526.6,3.82989189]
[1769877148534,0.00382837,2528.2,2526.9,3.82653299]
[1769877148739,0.00382837,2528.2,2527.1,3.82653299]
[1769877148941,3.65414553,2528.7,2527.1,4.02468299]
[1769877149744,3.65414553,2529.1,2527.4,3.82653299]
[1769877150043,0.00417377,2529.1,2527.9,3.82653299]
[1769877152147,3.65414553,2530.1,2528.4,4.02458299]
[1769877152341,3.65414553,2530.0,2528.4,4.02458299]
[1769877152645,3.65414553,2530.0,2528.4,3.82653299]
[1769877152941,3.65414553,2530.0,2528.1,3.82653299]
[1769877153145,3.6590683,2530.0,2528.7,3.82653299]
[1769877153350,3.6590683,2530.0,2528.6,0.19804]
[1769877153351,3.6590683,2530.0,2528.6,4.02457299]
[1769877154437,0.00492277,2530.0,2528.9,4.02454299]
[1769877154641,0.00492277,2530.0,2529.1,3.82653299]
[1769877155743,3.65414553,2530.6,2529.1,3.82653299]
[1769877156645,3.65922804,2530.6,2528.8,3.82653299]
[1769877157143,3.65922804,2530.6,2528.4,3.89059661]
[1769877157444,3.74848172,2530.4,2528.4,3.89059661]
[1769877157646,5.21629944,2530.5,2528.4,3.89059661]
[1769877157647,3.74848172,2530.2,2528.4,3.89059661]
[1769877157840,2.31748502,2530.5,2528.4,3.89059661]
[1769877157841,3.74848172,2530.0,2528.4,3.89059661]
[1769877158547,3.74848172,2530.4,2529.0,3.69254661]
[1769877159046,3.74848172,2530.4,2528.9,0.19801]
[1769877159451,3.74848172,2530.4,2528.6,3.69254661]
[1769877159642,3.74848172,2530.4,2528.5,0.19805]
[1769877159842,3.74848172,2530.4,2528.5,3.89059661]
[1769877161150,3.98236292,2530.2,2528.1,3.90302181]
[1769877161347,3.98236292,2530.0,2528.1,3.90302181]
[1769877161748,3.98236292,2529.8,2528.1,3.90302181]
[1769877162145,3.98236292,2529.6,2528.1,3.90302181]
[1769877162647,3.98236292,2529.5,2528.1,0.00448061]
[1769877163050,3.98236292,2529.1,2527.3,3.8985412]
[1769877163238,3.98236292,2528.9,2526.8,3.8985412]
[1769877163443,3.98236292,2528.6,2526.8,3.8985412]
[1769877163746,3.98236292,2528.4,2526.8,3.8985412]
[1769877163940,3.98236292,2528.2,2526.5,3.8985412]
[1769877164141,3.98663432,2528.2,2526.5,3.9033448]
[1769877164545,2.31748502,2527.9,2526.5,0.0048036]
[1769877164744,3.98236292,2527.7,2525.9,3.8985412]
[1769877164953,3.98236292,2527.5,2525.9,3.8985412]
[1769877165141,3.98236292,2527.3,2525.5,3.8985412]
[1769877165342,3.98236292,2527.7,2525.7,4.0968012]
[1769877165547,3.98236292,2527.5,2525.7,4.0968012]
[1769877165748,3.98236292,2527.5,2525.7,4.10130854]
[1769877166250,3.98236292,2527.5,2525.9,3.8985412]
[1769877166646,34.85241995,2527.9,2526.3,3.8985412]
[1769877166647,3.98236292,2527.9,2526.3,3.8985412]